Cogmind - Beta 17.1 @@@ ROGUE MODE // 2026.08.25 @ 13:16:37 Player: Lazz Result: Destroyed by S-43 Plague with Heavy Machine Gun Performance ------------- Evolutions (9) 4500 Regions Visited (15) 3000 Robots Destroyed (155) 775 Value Destroyed (6380) 6380 Prototype IDs (28) 560 Alien Tech Used (0) 0 Bonus (15120) 15120 TOTAL SCORE: 30335 Bonus ------- High Alert Combat Kills 220 Follower Combat Kills 583 Prayed to X0-1V1 5000 Major X0-1V1 Interference 9450 Friendly Fire -133 Cogmind --------- Core Integrity 0/1350 Matter 167/300 Energy 99/100 System Corruption 17% Temperature Cool (0) Movement Core (50) Location -1/Access Parts ------- > --- POWER (2) -------- (None) > --- PROPULSION (8) --- Biometal Leg Biometal Leg Biometal Leg > --- UTILITY (13) ----- (None) > --- WEAPON (3) ------- (None) > --- INVENTORY (6) ---- Quantum Capacitor Plasma Cutter Peak State ------------ > --- POWER ------------ Micro Antimatter Reactor Micro Antimatter Reactor > --- PROPULSION ------- Flexi-carbon Leg Flexi-carbon Leg Flexi-carbon Leg Myomer Leg Myomer Leg Myomer Leg Centrium Wheel > --- UTILITY ---------- Advanced Heat Sink Large Storage Unit Advanced Signal Interpreter Tactical Coordination Suite Core Analyzer Advanced Transmission Jammer Improved Utility Shielding Makeshift Utility Shielding X0-1V1's Piety Tracker > --- WEAPON ----------- Linear Accelerator Compact Mass Driver Heavy Hardcell Cannon > --- INVENTORY -------- Micro Antimatter Reactor Micro Antimatter Reactor Improved Heat Sink Long-range Sensor Array Improved Terrain Scanner Quantum Capacitor Tesla Rifle Heavy Beamcaster Heavy Beamcaster Improved Heavy Machine Gun Heavy Hardcell Cannon Heavy Missile Launcher Plasma Cutter [Rating: 150] Favorites ----------- Power Micro Antimatter Reactor Engine Improved Deuterium Engine Power Core Light Nuclear Core Reactor Micro Antimatter Reactor Propulsion Centrium Wheel Treads Light Treads Leg Myomer Leg Wheel Centrium Wheel Hover Unit Combat Linear Gravjet Flight Unit Improved Q-thruster Utility X0-1V1's Piety Tracker Device X0-1V1's Piety Tracker Storage Large Storage Unit Processor Core Analyzer Hackware Hacking Suite Protection Makeshift Utility Shielding Weapon Cooled Plasma Cannon Energy Gun Precision Shock Rifle Energy Cannon Cooled Plasma Cannon Ballistic Gun Improved Heavy Machine Gun Ballistic Cannon Heavy Hardcell Cannon Launcher Heavy Missile Launcher Special Weapon Plasma Cutter Special Melee Weapon Advanced Datajack Build | -11 -10 -9 -9 -8 -8 -8 -6 -5 -4 -4 -4 -3 -2 -2 -1 ------- Run | Yrd Mat Mat Min Mat Sto Rec Fac Fac Fac Was Fac Res Res Tes Acc Slots Evolved 18 | . . 2 . 2 . . 4 2 2 . . 2 2 . 2 Power 1 | . . . . . . . 1 . . . . . . . . Propulsion 6 | . . 1 . . . . 2 . 1 . . 1 1 . . Utility 9 | . . 1 . 2 . . 1 1 1 . . . 1 . 2 Weapon 2 | . . . . . . . . 1 . . . 1 . . . Parts Attached 175 | 7 2 9 3 11 10 1 2 8 20 1 1 24 36 14 26 Power 25 | 1 . 1 1 1 2 1 1 1 3 1 . 3 4 2 3 Engine 9 | 1 . 1 1 1 2 . 1 1 . . . . . . 1 Core 4 | . . . . . . 1 . . 2 . . . . . 1 Reactor 12 | . . . . . . . . . 1 1 . 3 4 2 1 Propulsion 63 | 2 . 3 . 3 3 . 1 2 8 . . 9 14 7 11 Treads 10 | 2 . 2 . 2 . . . . 2 . . . . . 2 Leg 23 | . . . . 1 3 . 1 . 5 . . 8 4 1 . Wheel 9 | . . 1 . . . . . 2 1 . . 1 3 . 1 Hover 13 | . . . . . . . . . . . . . 7 . 6 Flight 8 | . . . . . . . . . . . . . . 6 2 Utility 48 | 2 1 3 1 2 3 . . 2 7 . . 6 12 2 7 Device 31 | 1 . 2 1 1 2 . . 1 3 . . 2 10 2 6 Storage 4 | 1 1 1 . . . . . . . . . . 1 . . Processor 4 | . . . . . 1 . . . 1 . . 2 . . . Hackware 4 | . . . . . . . . . 1 . . 1 1 . 1 Protection 5 | . . . . 1 . . . 1 2 . . 1 . . . Artifact . | . . . . . . . . . . . . . . . . Weapon 39 | 2 1 2 1 5 2 . . 3 2 . 1 6 6 3 5 Energy Gun 12 | 1 . 2 1 2 . . . . . . 1 1 2 1 1 Energy Cannon 6 | . . . . 1 . . . 1 2 . . . . 1 1 Ballistic Gun 6 | 1 1 . . . . . . 1 . . . . 3 . . Ballistic Cannon 7 | . . . . . . . . . . . . 5 1 . 1 Launcher 6 | . . . . 2 1 . . 1 . . . . . 1 1 Special Weapon 1 | . . . . . 1 . . . . . . . . . . Impact Weapon . | . . . . . . . . . . . . . . . . Slashing Weapon . | . . . . . . . . . . . . . . . . Piercing Weapon . | . . . . . . . . . . . . . . . . Special Melee Weapon 1 | . . . . . . . . . . . . . . . 1 Unidentified Prototypes 19 | . . 1 . 2 1 . . 2 . . . 1 3 6 3 Corrupted Parts 1 | . . 1 . . . . . . . . . . . . . System Corruption 4 | . . 4 . . . . . . . . . . . . . Parts Lost 104 | . 1 2 2 1 4 . 1 1 11 . 2 19 31 6 23 Power 15 | . . 1 1 . 1 . 1 . 2 . 1 3 2 1 2 Propulsion 37 | . . 1 . 1 . . . . 2 . . 11 9 3 10 Utility 31 | . . . 1 . 2 . . . 4 . . 1 13 2 8 Weapon 21 | . 1 . . . 1 . . 1 3 . 1 4 7 . 3 Highest Loss Streak 21 | . 1 1 2 1 3 . 1 1 4 . 1 7 21 5 9 To Critical Strikes 4 | . . . . . . . . . 3 . . . 1 . . Average Backups 11 | 2 4 8 14 13 13 14 14 15 14 14 16 14 7 5 3 Power . | . . . . . 1 1 1 . 1 . . 2 . . . Propulsion . | . 1 1 2 1 . 1 . 1 1 2 2 . . . . Utility 5 | . 2 3 5 6 8 9 9 8 5 6 7 5 3 2 1 Weapon 3 | . 1 4 6 4 3 2 2 4 4 4 6 5 2 . . Tool/Special . | . . . . . . . . . . . . . . . . Unused Backups 14 | . . . . 7 1 . . 2 . 1 . 2 . . 1 Power . | . . . . . . . . . . . . . . . . Propulsion 2 | . . . . 1 . . . . . 1 . . . . . Utility 5 | . . . . 1 . . . 2 . . . 1 . . 1 Weapon 7 | . . . . 5 1 . . . . . . 1 . . . Tool/Special . | . . . . . . . . . . . . . . . . Average Slot Usage (%) 78 | . 100 88 86 86 84 90 87 87 91 100 95 91 55 30 20 Engine 5 | . 14 10 9 9 8 5 5 6 3 8 . . . . . Core 1 | . . . . . . 3 6 4 6 . . . . . . Reactor 1 | . . . . . . . . . . 1 5 8 5 . . Treads 5 | . 28 22 22 3 . . . . 3 . . . . . . Leg 9 | . . . . 7 14 18 22 16 10 17 15 16 7 . . Wheel 5 | . . 3 10 7 . . . 5 10 12 15 9 3 . . Device 17 | . 14 20 19 24 24 18 19 16 21 25 25 20 14 8 4 Storage 6 | . 14 11 11 9 9 9 6 5 5 5 5 4 2 . . Processor 2 | . . . . . 1 9 6 5 4 5 5 5 4 . . Protection 5 | . . . . 7 9 9 6 10 9 10 10 9 3 . . Energy Gun 5 | . 7 7 14 10 5 17 13 5 . . . 4 2 . . Energy Cannon 3 | . . . . 4 7 . . 4 11 5 5 2 . 1 . Ballistic Gun 3 | . 20 12 . . . . . 3 . 5 5 1 3 . . Launcher 1 | . . . . 2 3 . . 1 1 5 4 . . . . Peak Build Rating 150 | 7 7 27 28 54 56 55 70 102 120 121 121 150 150 134 105 Average Rating 72 | 5 6 21 25 45 50 54 66 92 111 117 116 135 93 66 51 On Entrance 57 | . 7 7 26 25 51 52 55 70 102 115 121 118 92 43 40 Avg Prop Armor Cover (%) 13 | . . 17 18 6 . . . 5 8 8 13 12 11 16 19 Naked Turns 57 | . . . . . . . . . . . . . 13 . 44 Heaviest Build 111 | 15 19 35 34 49 52 36 51 88 111 90 90 92 77 20 34 Greatest Support 165 | 40 40 60 20 42 46 46 76 76 150 95 48 135 101 34 165 Greatest Overweight (x) 6 | 1 . 3 3 3 1 . . 2 3 1 1 4 4 5 6 Average Overweight (x) . | . . . 1 1 . . . 1 1 . 1 . 1 . . Largest Inventory Capacity 16 | 8 10 15 15 15 16 16 16 16 16 16 16 16 16 16 6 Average Capacity 13 | 7 8 13 15 15 15 16 16 16 16 16 16 16 13 6 6 Most Carried 16 | 4 5 13 15 15 16 16 16 16 16 16 16 16 13 7 6 Average Carried 11 | 2 4 8 14 14 14 15 15 15 14 14 16 15 8 5 4 Final Capacity 16 | 8 10 15 15 15 16 16 16 16 16 16 16 16 16 6 6 Final Carried 16 | 4 5 13 14 15 15 16 16 16 13 16 16 14 7 6 3 Class Distribution -------------------- 42% | Mutant 15% | Scavenger-Gunner 9% | Scavenger-Tank 8% | Scavenger-Mutant 7% | Commander-Mutant 6% | Commander-Gunner 4% | Skirmisher Dominant Class ---------------- Mutant | -10/Materials Mutant | -9/Materials Scavenger-Mutant | -9/Mines Mutant | -8/Materials Mutant | -8/Storage Commander-Mutant | -8/Recycling Commander-Mutant | -6/Factory Commander-Gunner | -5/Factory Scavenger-Tank | -4/Factory Scavenger-Gunner | -4/Waste Scavenger-Gunner | -4/Factory Scavenger-Gunner | -3/Research Mutant | -2/Research Mutant | -2/Testing Mutant | -1/Access Resources | -11 -10 -9 -9 -8 -8 -8 -6 -5 -4 -4 -4 -3 -2 -2 -1 ----------- Run | Yrd Mat Mat Min Mat Sto Rec Fac Fac Fac Was Fac Res Res Tes Acc Matter Collected 4801 | 300 129 152 36 65 593 48 127 310 304 156 81 1218 963 127 192 Remotely . | . . . . . . . . . . . . . . . . Salvage Created 6792 | 101 400 362 131 117 778 48 75 430 1426 . 94 1466 1239 11 114 Parts 327 | 8 22 30 7 7 44 3 5 18 59 . 1 55 60 . 8 Haulers Intercepted 8 | . 2 1 . . 3 . . . . . . 1 1 . . Recyclers Shooed 7 | . . . . . . . . . . . . 1 6 . . Parts Field Recycled . | . . . . . . . . . . . . . . . . Retrieved Matter . | . . . . . . . . . . . . . . . . Parts Self-Destructed . | . . . . . . . . . . . . . . . . Prevented . | . . . . . . . . . . . . . . . . Parts Restored . | . . . . . . . . . . . . . . . . Kills | -11 -10 -9 -9 -8 -8 -8 -6 -5 -4 -4 -4 -3 -2 -2 -1 ------- Run | Yrd Mat Mat Min Mat Sto Rec Fac Fac Fac Was Fac Res Res Tes Acc Combat Hostiles Destroyed 101 | . 7 7 2 4 18 1 1 6 19 . 4 17 12 . 3 Guns 34 | . 7 7 1 1 3 1 1 3 . . 1 2 7 . . Cannons 46 | . . . . 1 8 . . 2 13 . 1 14 4 . 3 AOE 14 | . . . . 2 7 . . 1 1 . 2 . 1 . . Classes Destroyed 16 | 2 4 1 2 . 2 . . . 3 . . 2 . . . Worker 7 | . . . 1 1 . . . . 1 . . 2 1 1 . Builder 9 | . . . 2 . . . . . 3 . . 1 2 . 1 Tunneler 3 | 2 1 . . . . . . . . . . . . . . Hauler 8 | . 2 1 . . 3 . . . . . . 1 1 . . Recycler 11 | 1 . 1 . . . . . . . . . 5 4 . . Mechanic 3 | . 1 1 . . . . . . . . . . 1 . . Operator 3 | . . . . . 2 . . . . . . 1 . . . Watcher 6 | . . . . . 2 . . 1 . . . 2 . . 1 Swarmer 20 | . 3 3 . . 7 . . 2 . . . 1 3 . 1 Grunt 41 | . 4 2 2 3 5 1 . 4 8 . 3 9 . . . Duelist 1 | . . . . . . . . . . . . 1 . . . Sentry 13 | . . 2 . 1 6 . 1 1 1 . 1 . . . . Specialist 1 | . . . . . . . . . . . . 1 . . . Hunter 11 | . . . . . . . . . 6 . . 1 4 . . Programmer 17 | . . . . . . . . . 6 . . 4 5 . 2 Heavy 1 | . . . . . . . . . 1 . . . . . . Best Kill Streak 12 | 2 3 3 2 4 7 1 1 2 4 . 3 8 12 1 3 Combat Bots Only 7 | . 3 3 2 3 7 1 1 2 4 . 3 4 6 . 3 Max Kills in Single Turn 2 | 1 1 1 1 2 2 1 1 2 2 . 1 2 2 1 1 Gunslinging 1 | . . . . . . . . . . . . . 1 . . Exploded 2 | . . . . 1 2 . . 1 1 . 1 . 1 . . Melee . | . . . . . . . . . . . . . . . . Uniques/NPCs Destroyed . | . . . . . . . . . . . . . . . . Combat | -11 -10 -9 -9 -8 -8 -8 -6 -5 -4 -4 -4 -3 -2 -2 -1 -------- Run | Yrd Mat Mat Min Mat Sto Rec Fac Fac Fac Was Fac Res Res Tes Acc Hostile Shots Fired 1850 | . 53 52 31 10 122 . 27 29 278 . 24 247 349 63 565 Missed 682 | . 21 14 4 6 39 . 14 11 102 . 7 77 140 27 220 Hits 1168 | . 32 38 27 4 83 . 13 18 176 . 17 170 209 36 345 Melee 95 | . . . . . . . . . . . . 7 . . 88 Projectile 1073 | . 32 38 27 4 83 . 13 18 176 . 17 163 209 36 257 AOE 5 | . . . . . . . . . . . . 1 . . 4 Critical Strikes 53 | . . . 1 . 2 . . . 10 . 2 14 13 2 9 Actively Blocked 3 | . . . . . 1 . . . . . . 1 1 . . Part Disruptions 3 | . . . . . . . . . . . . 3 . . . Damage Taken 22609 | . 394 393 331 67 977 17 112 318 3248 . 348 3908 4926 926 6644 Core 5959 | . 109 82 118 . 251 . 10 18 163 . 59 398 1681 306 2764 Absorbed by Shields . | . . . . . . . . . . . . . . . . Redirected to Shielding 292 | . . . . . 8 . . . 75 . 11 100 98 . . Ignored by Resistances 135 | . . . . . . . . . . . . . . . 135 Regen/Repaired (Parts) 71 | . . . . . 71 . . . . . . . . . . Core Remaining (%) 70 | 100 56 . 50 . . 94 98 97 . . 75 62 . 4 . Volleys Fired 382 | 10 37 26 24 4 48 3 3 18 56 . 9 61 41 3 39 Largest 4 | 2 2 2 2 2 2 2 2 3 3 . 3 4 4 1 1 Hottest 243 | 60 60 130 130 145 170 135 135 206 215 . 89 243 182 52 113 Shots Fired 803 | 20 70 49 36 7 71 6 6 52 149 . 24 155 117 3 38 Gun 391 | 20 70 49 36 2 25 6 6 32 1 . 10 29 96 . 9 Cannon 374 | . . . . 1 37 . . 17 141 . 9 124 17 . 28 Launcher 36 | . . . . 4 9 . . 3 7 . 5 2 4 1 1 Special 2 | . . . . . . . . . . . . . . 2 . Kinetic 328 | 10 47 30 . . . . . 14 1 . 10 114 83 . 19 Thermal 366 | . . 19 36 2 62 3 3 17 141 . 9 36 27 2 9 Explosive 29 | . . . . 4 9 . . . 3 . 5 2 4 1 1 Electromagnetic 80 | 10 23 . . 1 . 3 3 21 4 . . 3 3 . 9 Robot Hit Streak 19 | 5 5 9 7 11 10 4 10 13 10 . 17 19 9 . 4 Robot Miss Streak 6 | 2 2 2 3 . 4 1 1 2 3 . 2 3 6 . 4 Penetration Max 1 | . . . . . . . . . . . . . 1 . . Secondary Targets 8 | . 2 2 . . . . . . . . . . 4 . . Max Gunslinging Chain 2 | . 1 1 . . . . . . . . . . 2 . . Shots Hit Robots 505 | 12 48 35 21 6 49 5 6 37 82 . 19 105 64 . 16 Core Hits 265 | 4 19 16 5 9 42 2 4 19 37 . 11 40 44 4 9 Critical Kills 9 | . . . . . 1 . . . 4 . . . 4 . . Critical Parts Destroyed . | . . . . . . . . . . . . . . . . Critical Strikes 26 | 2 . . 1 . 1 . . . 4 . . 11 6 . 1 Burn 5 | . . . 1 . . . . . . . . 2 2 . . Meltdown 5 | . . . . . 1 . . . 4 . . . . . . Destroy 4 | . . . . . . . . . . . . . 4 . . Blast 10 | . . . . . . . . . . . . 9 . . 1 Corrupt 2 | 2 . . . . . . . . . . . . . . . Melee Attacks 2 | . . . . . . . . . . . . . . . 2 Impact . | . . . . . . . . . . . . . . . . Slashing . | . . . . . . . . . . . . . . . . Piercing . | . . . . . . . . . . . . . . . . Sneak Attacks . | . . . . . . . . . . . . . . . . Combat Hostiles . | . . . . . . . . . . . . . . . . Follow-up Attacks . | . . . . . . . . . . . . . . . . Damage Inflicted 18947 | 163 585 443 328 455 2044 106 130 1098 3324 . 1298 5429 2608 264 672 Guns 5095 | 163 585 443 328 28 425 106 130 534 . . 182 684 1437 . 50 Cannons 9596 | . . . . 32 743 . . 414 2770 . 256 4229 560 . 592 Explosions 4183 | . . . . 395 876 . . 150 554 . 860 508 576 264 . Melee . | . . . . . . . . . . . . . . . . Ramming 73 | . . . . . . . . . . . . 8 35 . 30 Kinetic 7209 | 62 377 205 . . . . . 255 . . 182 3985 1712 . 431 Thermal 7214 | . . 238 328 43 1168 44 80 414 2830 . 726 902 280 . 161 Explosive 3270 | . . . . 395 876 . . . 355 . 390 414 576 264 . Electromagnetic 1181 | 101 208 . . 17 . 62 50 429 139 . . 120 5 . 50 Impact . | . . . . . . . . . . . . . . . . Slashing . | . . . . . . . . . . . . . . . . Piercing . | . . . . . . . . . . . . . . . . Highest Corruption 18 | . . 4 4 . 4 . . . 18 18 18 11 9 12 17 Average Corruption 8 | . . 4 4 . 3 . . . 15 18 18 5 4 8 8 Corruption Purged 2 | . . . . . . . . . . . . 2 . . . Corruption Blocked . | . . . . . . . . . . . . . . . . Effects 145 | . . 4 8 . 23 . . . 27 15 6 20 10 6 26 Message Errors 30 | . . . . . 3 . . . 8 1 1 5 1 1 10 Matter Fused 42 | . . 2 . . 7 . . . 4 10 1 6 4 4 4 Heat Flow Errors 15 | . . . . . 2 . . . 4 2 1 1 1 . 4 Energy Discharges 16 | . . . 6 . 2 . . . 3 2 . 2 . . 1 Parts Rejected 7 | . . 1 1 . . . . . 1 . . 1 2 . 1 Parts Fused 2 | . . . . . . . . . 2 . . . . . . Data Loss (minor) 9 | . . 1 . . 4 . . . 1 . 1 1 1 . . Data Loss (major) 4 | . . . 1 . . . . . 1 . 1 . . . 1 Misfires 5 | . . . . . 3 . . . 1 . 1 . . . . Alerts 1 | . . . . . . . . . . . . . . 1 . Misdirections 4 | . . . . . . . . . . . . . . . 4 Weapon Failures 10 | . . . . . 2 . . . 2 . . 4 1 . 1 Overload Shots 4 | . . . . . . . . 2 2 . . . . . . Overflow Damage 751 | . . . . . 82 . . . 69 . 60 438 82 . 20 Projectiles 535 | . . . . . 25 . . . 26 . . 438 26 . 20 Explosions 215 | . . . . . 57 . . . 43 . 60 . 55 . . Melee 1 | . . . . . . . . . . . . . 1 . . Knockbacks 36 | . . . . . . . . . . . . 30 3 . 3 Impact . | . . . . . . . . . . . . . . . . Kinetic 34 | . . . . . . . . . . . . 28 3 . 3 Secondary 2 | . . . . . . . . . . . . 2 . . . Self-Inflicted Damage 314 | . . . . . 68 . . . 93 . . . 129 12 12 Shots 8 | . . . . . 2 . . . 3 . . . 2 1 . Rammed 9 | . . . . . . . . . . . . . 2 . 7 Targets Rammed 11 | . . . . . . . . . . . . 1 3 . 7 Kicked 2 | . . . . . . . . . . . . 1 1 . . Crushed . | . . . . . . . . . . . . . . . . Highest Temperature 440 | . 75 206 440 . 233 . . 45 380 168 186 167 95 329 118 Average Temperature 81 | . 26 78 178 . 21 . . 25 70 86 95 36 21 178 50 Received Heat Transfer 2395 | . 150 120 204 36 321 9 42 54 198 . 158 731 81 54 237 Siege Activations . | . . . . . . . . . . . . . . . . Martial Activations . | . . . . . . . . . . . . . . . . Shielding Activations . | . . . . . . . . . . . . . . . . Robots Disrupted . | . . . . . . . . . . . . . . . . Combat Hostiles . | . . . . . . . . . . . . . . . . Robots Corrupted 1 | . . . . . . . . . . . . . 1 . . Combat Hostiles . | . . . . . . . . . . . . . . . . Parts Fried 2 | . 1 . . . . . . . . . . 1 . . . Impact Corruptions 1 | . . . . . . . . . . . . . 1 . . Robots Melted 8 | . . . 1 . 1 . . . 5 . . 1 . . . Combat Hostiles 7 | . . . 1 . . . . . 5 . . 1 . . . Parts Melted 25 | . . . 2 . 5 . . 2 14 . 1 . 1 . . Heat Transferred 11573 | . . 555 851 75 2125 100 175 610 4230 . 700 1412 592 . 148 Parts Sabotaged . | . . . . . . . . . . . . . . . . Parts Stolen 4 | . . . . . . . . . . . . . . . 4 Parts Stripped . | . . . . . . . . . . . . . . . . Power Chain Reactions 1 | . . . . . . . . . . . . 1 . . . Alert | -11 -10 -9 -9 -8 -8 -8 -6 -5 -4 -4 -4 -3 -2 -2 -1 ------- Run | Yrd Mat Mat Min Mat Sto Rec Fac Fac Fac Was Fac Res Res Tes Acc Maximum Alert Level 2 | . . . . . 1 . . 1 1 . 1 2 2 . 1 Low Security (%) 61 | 100 100 100 100 100 58 100 100 79 49 100 10 31 13 100 22 Level 1 34 | . . . . . 41 . . 20 50 . 90 39 82 . 77 Level 2 3 | . . . . . . . . . . . . 29 4 . . Level 3 . | . . . . . . . . . . . . . . . . Level 4 . | . . . . . . . . . . . . . . . . Level 5 . | . . . . . . . . . . . . . . . . High Security . | . . . . . . . . . . . . . . . . Max Security . | . . . . . . . . . . . . . . . . Peak Influence 622 | 10 65 60 32 99 260 99 71 250 280 89 307 622 443 178 327 Initial 335 | . . . 12 . 37 99 11 7 87 89 . 139 335 73 58 Average 142 | . 21 36 3 16 161 65 34 96 156 30 252 309 268 60 221 Influence Increases 6017 | 15 220 202 65 139 823 39 115 465 676 . 357 1139 568 281 913 Destroy 0b10 Robot/C 2420 | . 140 140 40 80 400 20 60 240 380 . 80 440 260 80 60 Destroy 0b10 Robot/NC 240 | 15 20 15 15 5 35 . . 10 20 . . 35 50 10 10 Destroy Leader 556 | . 34 42 10 20 100 10 20 62 90 . 20 74 62 . 12 Allied During Kill 269 | . . . . . 38 9 34 119 . . . . 31 38 . Successful Hack 158 | . 11 5 . . 16 . . 18 . . . 24 . 63 21 Disable Machine 300 | . 15 . . . 90 . . . 45 . 45 60 30 15 . Anti-Garrison Action 150 | . . . . . . . . . . . 150 . . . . Destroy Structure 616 | . . . . 34 99 . 1 16 126 . 62 80 75 60 63 Partial Spotted 60 | . . . . . . . . . . . . 15 . 15 30 Lose Combat Pursuer 750 | . . . . . 45 . . . 15 . . 195 60 . 435 Miscellaneous 498 | . . . . . . . . . . . . 216 . . 282 Influence Decreases 5818 | 15 220 170 97 50 657 266 128 301 599 256 90 810 1033 314 812 Entered New Map 999 | . . . 20 . 52 156 17 8 92 167 . 128 261 58 40 Time Decay 2987 | 15 171 150 67 40 395 110 101 193 397 89 70 392 362 93 342 Search Patrol Dispatched 300 | . . . . . . . . . . . . 100 . . 200 Lost Part 1020 | . 10 20 10 10 40 . 10 . 110 . 20 190 310 60 230 Lost Ally 230 | . . . . . 20 . . 100 . . . . 100 10 . Purge Threat 282 | . 39 . . . 150 . . . . . . . . 93 . Squads Dispatched 51 | . . 1 . 2 1 1 . 8 8 . 3 7 12 2 6 Investigation 11 | . . 1 . 2 . 1 . 2 3 . 1 . . . 1 Extermination 12 | . . . . . . . . 1 3 . . 2 3 1 2 Reinforcement 18 | . . . . . 1 . . 2 2 . . 4 5 1 3 Assault 4 | . . . . . . . . . . . 2 1 1 . . Garrison 6 | . . . . . . . . 3 . . . . 3 . . Intercept . | . . . . . . . . . . . . . . . . Searches Triggered 3 | . . . . . . . . . . . . 1 . . 2 Construction Impeded 1 | . . . . . . . . . . . . . . . 1 Haulers Reinforced 1 | . . . . . . . . . . . . . 1 . . Active Scanning Responses . | . . . . . . . . . . . . . . . . Cargo Convoy Interrupts . | . . . . . . . . . . . . . . . . Stealth | -11 -10 -9 -9 -8 -8 -8 -6 -5 -4 -4 -4 -3 -2 -2 -1 --------- Run | Yrd Mat Mat Min Mat Sto Rec Fac Fac Fac Was Fac Res Res Tes Acc Distress Signals 15 | . 1 . . . 4 . 1 . 1 . . 1 6 . 1 Communications Jammed 86 | . . . . . . . . . . . 1 62 23 . . Distress Signals 84 | . . . . . . . . . . . . 62 22 . . Times Spotted 328 | . 10 8 2 3 28 2 2 21 24 . 5 55 50 26 92 Peak Tracking Total 20 | . 3 4 2 3 6 2 2 5 4 . 2 10 15 13 20 Tactical Retreats 27 | . . . . . 2 . . . 1 . . 7 3 . 14 Traps | -11 -10 -9 -9 -8 -8 -8 -6 -5 -4 -4 -4 -3 -2 -2 -1 ------- Run | Yrd Mat Mat Min Mat Sto Rec Fac Fac Fac Was Fac Res Res Tes Acc Traps Triggered 11 | . 1 . . . 3 . . . 2 . . 3 1 . 1 Indirectly . | . . . . . . . . . . . . . . . . Trap Hack Attempts . | . . . . . . . . . . . . . . . . Triggered . | . . . . . . . . . . . . . . . . Disarmed . | . . . . . . . . . . . . . . . . Reprogrammed . | . . . . . . . . . . . . . . . . Reused . | . . . . . . . . . . . . . . . . Traps Extracted . | . . . . . . . . . . . . . . . . Installed . | . . . . . . . . . . . . . . . . Triggered . | . . . . . . . . . . . . . . . . Machines | -11 -10 -9 -9 -8 -8 -8 -6 -5 -4 -4 -4 -3 -2 -2 -1 ---------- Run | Yrd Mat Mat Min Mat Sto Rec Fac Fac Fac Was Fac Res Res Tes Acc Machines Disabled 21 | . 1 . . . 6 . . . 3 . 4 4 2 1 . Max in Single Turn 4 | . 1 . . . 1 . . . 2 . 4 2 1 1 . Garrison Access 1 | . . . . . . . . . . . 1 . . . . Energy Cycler 1 | . . . . . . . . . . . . . . . 1 Machines Repaired . | . . . . . . . . . . . . . . . . Machines Dismantled 2 | . . . . . 1 . . . . . . . . 1 . Machines Sabotaged . | . . . . . . . . . . . . . . . . Overloaded Fab Kills . | . . . . . . . . . . . . . . . . Hacking | -11 -10 -9 -9 -8 -8 -8 -6 -5 -4 -4 -4 -3 -2 -2 -1 --------- Run | Yrd Mat Mat Min Mat Sto Rec Fac Fac Fac Was Fac Res Res Tes Acc Machines Accessed 31 | . 4 1 . . 6 . 1 2 1 . 2 3 5 4 2 Terminals 25 | . 4 1 . . 5 . 1 1 1 . 2 3 2 3 2 Fabricators . | . . . . . . . . . . . . . . . . Repair Stations 4 | . . . . . 1 . . . . . . . 2 1 . Recycling Units . | . . . . . . . . . . . . . . . . Scanalyzers . | . . . . . . . . . . . . . . . . Garrison Access 2 | . . . . . . . . 1 . . . . 1 . . Total Hacks 77 | . 14 3 . . 13 . 4 4 3 . 6 3 8 14 5 Successful 28 | . 7 2 . . 7 . . 1 . . . 1 . 8 2 Failed 49 | . 7 1 . . 6 . 4 3 3 . 6 2 8 6 3 Catastrophic 14 | . 2 1 . . 1 . . 3 . . 1 2 1 2 1 Database Lockouts . | . . . . . . . . . . . . . . . . Manual 22 | . 5 2 . . 4 . 4 2 . . . . 2 3 . Terminals 68 | . 14 3 . . 11 . 4 3 3 . 6 3 3 13 5 Fabricators . | . . . . . . . . . . . . . . . . Repair Stations 6 | . . . . . 2 . . . . . . . 3 1 . Recycling Units . | . . . . . . . . . . . . . . . . Scanalyzers . | . . . . . . . . . . . . . . . . Garrison Access 3 | . . . . . . . . 1 . . . . 2 . . Terminal Hacks 23 | . 7 2 . . 5 . . . . . . 1 . 6 2 Robot Analysis 3 | . 1 1 . . . . . . . . . . . 1 . Prototype ID Bank 5 | . 3 1 . . 1 . . . . . . . . . . Open Door 2 | . . . . . 1 . . . . . . . . . 1 Branch Access Points 1 | . . . . . . . . . . . . 1 . . . Terminal Index 2 | . . . . . 1 . . . . . . . . . 1 Unreport Threat 4 | . 2 . . . 1 . . . . . . . . 1 . Hauler Manifests 1 | . 1 . . . . . . . . . . . . . . Registered Prototypes 1 | . . . . . . . . . . . . . . 1 . Zone Layout 2 | . . . . . 1 . . . . . . . . 1 . Protovariant Controls 2 | . . . . . . . . . . . . . . 2 . Fabricator Hacks . | . . . . . . . . . . . . . . . . Repair Station Hacks 2 | . . . . . 2 . . . . . . . . . . Scan Component 1 | . . . . . 1 . . . . . . . . . . Repair 1 | . . . . . 1 . . . . . . . . . . Recycling Unit Hacks . | . . . . . . . . . . . . . . . . Scanalyzer . | . . . . . . . . . . . . . . . . Garrison Access Hacks . | . . . . . . . . . . . . . . . . Unauthorized Hacks 3 | . . . . . . . . 1 . . . . . 2 . Terminals 2 | . . . . . . . . . . . . . . 2 . Assimilate 1 | . . . . . . . . . . . . . . 1 . Botnet 1 | . . . . . . . . . . . . . . 1 . Fabricators . | . . . . . . . . . . . . . . . . Repair Stations . | . . . . . . . . . . . . . . . . Recycling Units . | . . . . . . . . . . . . . . . . Scanalyzers . | . . . . . . . . . . . . . . . . Garrison Access 1 | . . . . . . . . 1 . . . . . . . Reprogram 1 | . . . . . . . . 1 . . . . . . . Data Cores Recovered 4 | . . . . . 2 . 1 . . . . 1 . . . Used . | . . . . . . . . . . . . . . . . Hacking Detections 26 | . 4 1 . . 4 . 1 1 1 . 2 3 4 4 1 Full Trace Events 6 | . . 1 . . 1 . . 1 1 . 1 . . . 1 Feedback Events . | . . . . . . . . . . . . . . . . Feedback Blocked . | . . . . . . . . . . . . . . . . Robot Schematics Acquired . | . . . . . . . . . . . . . . . . Robots Built . | . . . . . . . . . . . . . . . . Authchips . | . . . . . . . . . . . . . . . . Time . | . . . . . . . . . . . . . . . . Total Robot Build Rating . | . . . . . . . . . . . . . . . . Part Schematics Acquired . | . . . . . . . . . . . . . . . . Parts Built . | . . . . . . . . . . . . . . . . Authchips . | . . . . . . . . . . . . . . . . Time . | . . . . . . . . . . . . . . . . Total Part Build Rating . | . . . . . . . . . . . . . . . . Part Studies Acquired . | . . . . . . . . . . . . . . . . Parts Repaired 1 | . . . . . 1 . . . . . . . . . . Time 44 | . . . . . 44 . . . . . . . . . . Parts Recycled . | . . . . . . . . . . . . . . . . Recycled Matter . | . . . . . . . . . . . . . . . . Retrieved Matter . | . . . . . . . . . . . . . . . . Retrieved Components . | . . . . . . . . . . . . . . . . Parts Scanalyzed . | . . . . . . . . . . . . . . . . Part Schematics Acquired . | . . . . . . . . . . . . . . . . Parts Damaged . | . . . . . . . . . . . . . . . . Bothacking | -11 -10 -9 -9 -8 -8 -8 -6 -5 -4 -4 -4 -3 -2 -2 -1 ------------ Run | Yrd Mat Mat Min Mat Sto Rec Fac Fac Fac Was Fac Res Res Tes Acc Used RIF Installer . | . . . . . . . . . . . . . . . . Robots Hacked 1 | . . . . . . . . . . . . . . . 1 Non-combat . | . . . . . . . . . . . . . . . . Combat 1 | . . . . . . . . . . . . . . . 1 Robot Hacks Applied 1 | . . . . . . . . . . . . . . . 1 parse_system 1 | . . . . . . . . . . . . . . . 1 Relay Couplers Released 2 | . . . . . . . . . . . 2 . . . . Machine Destruction 2 | . . . . . . . . . . . 2 . . . . Fabnet Peak Effective % . | . . . . . . . . . . . . . . . . Robots Rewired . | . . . . . . . . . . . . . . . . Allies Hacked 1 | . . . . . . . . . . . . . 1 . . Hacks Repelled . | . . . . . . . . . . . . . . . . Allies | -11 -10 -9 -9 -8 -8 -8 -6 -5 -4 -4 -4 -3 -2 -2 -1 -------- Run | Yrd Mat Mat Min Mat Sto Rec Fac Fac Fac Was Fac Res Res Tes Acc Total Allies 22 | . . . . . 10 . . 3 . . . . 5 4 . Largest Group 10 | . . . . . 10 6 6 9 3 . . . 3 4 . Highest-Rated Group 237 | . . . . . 173 109 109 145 48 . . . 174 237 . Highest-Rated Ally 64 | . . . . . 29 29 29 29 16 . . . 58 64 . Total Orders . | . . . . . . . . . . . . . . . . Ally Attacks 171 | . . . . . 7 . 12 92 3 . . . 41 16 . Total Damage 2870 | . . . . . 96 . 88 1152 29 . . . 935 570 . Kills 18 | . . . . . 2 . 2 7 . . . . 2 5 . Allies Corrupted . | . . . . . . . . . . . . . . . . Allies Melted . | . . . . . . . . . . . . . . . . X0-1V1 Amusement Gains 206 | . 7 . . . 15 . . 5 . . 10 20 85 . 64 Average Entertainment 23 | . 6 2 1 3 17 12 8 10 6 5 14 25 24 63 60 Good Acts 68 | . . . . 16 2 2 2 4 5 1 1 9 13 1 12 Bad Acts 51 | . . 2 1 4 4 1 . . 7 1 . 8 5 8 10 Intel | -11 -10 -9 -9 -8 -8 -8 -6 -5 -4 -4 -4 -3 -2 -2 -1 ------- Run | Yrd Mat Mat Min Mat Sto Rec Fac Fac Fac Was Fac Res Res Tes Acc Active Infowar (turns) 3581 | 63 687 208 54 70 529 . . . 144 149 150 931 426 170 . Sensors 742 | . . . . . . . . . . . . 478 264 . . Terrain 170 | . . . . . . . . . . . . . . 170 . Structural 653 | . . . 54 70 529 . . . . . . . . . . Seismic 958 | 63 687 208 . . . . . . . . . . . . . Jamming 1800 | . . . . . . . . . 144 149 150 931 426 . . Robot Analysis Total 3 | . 1 1 . . . . . . . . . . . 1 . Derelict Logs Recovered 1 | . . . 1 . . . . . . . . . . . . Drone Launches 2 | . . . . . . . . . . . . . 2 . . Drone Recoveries 2 | . . . . . . . . . . . . . 2 . . Exploration | -11 -10 -9 -9 -8 -8 -8 -6 -5 -4 -4 -4 -3 -2 -2 -1 ------------- Run | Yrd Mat Mat Min Mat Sto Rec Fac Fac Fac Was Fac Res Res Tes Acc Turns Passed 8140 | 145 687 346 565 199 944 222 236 539 999 289 150 931 836 278 774 Spaces Moved 4822 | 64 288 134 243 90 429 123 171 294 527 245 98 487 514 296 819 Core 262 | 8 . . . . . . . . . . . . 26 14 214 Treads 742 | 56 288 120 159 6 . . . . 66 . . . . . 47 Legs 1425 | . . . . 72 429 123 171 147 109 116 . 81 177 . . Wheels 1493 | . . 14 84 12 . . . 147 352 129 98 406 158 . 93 Hover 314 | . . . . . . . . . . . . . 153 7 154 Flight 586 | . . . . . . . . . . . . . . 275 311 Fastest Speed 27 | 50 160 125 110 110 115 115 115 117 110 110 110 110 50 27 30 Average Speed 123 | 150 160 177 197 168 164 115 116 145 139 114 110 117 116 55 69 Slowest Speed 350 | 160 160 240 240 225 185 115 117 187 330 120 110 330 250 300 350 Overloaded Moves 20 | . . . . . . . . . . . . . . 20 . Propulsion Burnouts . | . . . . . . . . . . . . . . . . Robots Hopped 13 | . . . . . . . . . . . . . . 6 7 Potential Cave-ins 7 | . . . . . . . . . . . . . . 7 . Cave-ins Triggered . | . . . . . . . . . . . . . . . . Exploration Rate (%) 30 | 5 55 14 73 8 68 35 4 10 15 84 4 15 25 43 33 Regions Visited 15 Branch Regions 4 Pre-discovered Areas . | . . . . . . . . . . . . . . . . Known Exits Taken 2 | . . . . . . . 1 . . . . 1 . . . Unknown Exits Taken 11 | 1 1 1 1 1 1 1 . 1 . . 1 . 1 1 . Scrap Searched 2 | . . . 2 . . . . . . . . . . . . Spaces Dug 10 | . . . . . . . . . 3 . . . 1 . 6 Terrain Destroyed 445 | . . . . 57 144 . . 6 67 . 34 50 32 31 24 Melee . | . . . . . . . . . . . . . . . . Projectile 121 | . . . . . 11 . . 6 46 . 1 30 12 . 15 AOE 324 | . . . . 57 133 . . . 21 . 33 20 20 31 9 Terrain Rammed . | . . . . . . . . . . . . . . . . Walls Destroyed . | . . . . . . . . . . . . . . . . Machines Disabled . | . . . . . . . . . . . . . . . . Actions | -11 -10 -9 -9 -8 -8 -8 -6 -5 -4 -4 -4 -3 -2 -2 -1 --------- Run | Yrd Mat Mat Min Mat Sto Rec Fac Fac Fac Was Fac Res Res Tes Acc Total 6261 | 90 446 195 291 132 572 196 200 369 668 253 121 706 670 384 968 Wait 689 | 6 119 18 19 5 63 69 19 36 46 . 14 106 58 53 58 Move 4786 | 63 287 133 242 89 428 122 170 293 527 244 97 486 514 285 806 Hop 10 | . . . . . . . . . . . . . . 4 6 Pick Up 57 | 4 1 7 2 8 4 . 3 5 4 4 . 7 2 2 4 Fast Attach 130 | 7 . 5 3 5 5 . 2 2 13 . 1 15 34 15 23 Attach 54 | . 1 1 1 . 3 . 3 3 10 . . 8 10 2 12 Detach 10 | . . . . . . . . . 1 . . 1 1 1 6 Swap 38 | . 1 4 . 6 6 2 . 5 5 2 . 6 1 . . Drop 72 | . . 1 . 15 6 . . 7 6 2 . 12 7 12 4 Fire 382 | 10 37 26 24 4 48 3 3 18 56 . 9 61 41 3 39 Melee 2 | . . . . . . . . . . . . . . . 2 Ram 8 | . . . . . . . . . . . . 1 1 . 6 Kick 2 | . . . . . . . . . . . . 1 1 . . Crush 2 | . . . . . . . . . . . . . . . 2 Escape Stasis . | . . . . . . . . . . . . . . . . Rewire 3 | . . . . . . . . . . 1 . 2 . . . Trap . | . . . . . . . . . . . . . . . . Miscellaneous 16 | . . . . . 9 . . . . . . . . 7 . Route ------- -11/Scrapyard -10/Materials (discovered 2 exits: *Mat / [*Sub]) -9/Materials -9/Mines (discovered 3 exits: [*Mat x2] / [*Exi]) -8/Materials (discovered 3 exits: Fac x2 / *Sto) -8/Storage -8/Recycling -6/Factory (discovered 2 exits: *Fac x2) -5/Factory -4/Factory -4/Waste -4/Factory -3/Research (discovered 3 exits: *Res / Qua x2) -2/Research -2/Testing -1/Access History --------- Turn | Location | Event 7 | -11/Scrapyard | Discovered new exit (range 15) 146 | -11/Scrapyard | Entered Materials 318 | -10/Materials | Build established: Mutant 351 | -10/Materials | Discovered new exit (range 14) 677 | -10/Materials | Discovered new exit (range 6) 740 | -10/Materials | Prayed at D.C.S.S. Altar Unit 833 | -10/Materials | Entered another Materials area 833 | -9/Materials | Evolved 2 slots: Propulsion x1, Utility x1 1059 | -9/Materials | Discovered new exit (range 10) 1179 | -9/Materials | Entered Mines 1232 | -9/Mines | Discovered new exit (range 7) 1327 | -9/Mines | Learned Materials stockpile data 1329 | -9/Mines | Build established: Scavenger-Mutant 1559 | -9/Mines | X0-1V1 sent you into danger 1651 | -9/Mines | Deemed a non-threat by the Exiles lab entrance 1651 | -9/Mines | Discovered new exit (range 5) 1732 | -9/Mines | Discovered new exit (range 8) 1744 | -9/Mines | Entered Materials 1744 | -8/Materials | Evolved 2 slots: Utility x2 1744 | -8/Materials | X0-1V1 released a cloud of subatomizers 1760 | -8/Materials | Heat dissipation permanently improved by X0-1V1 (+30; -150 max core) 1762 | -8/Materials | Identified exit to Factory 1762 | -8/Materials | X0-1V1 revealed exit location to -7/Factory 1762 | -8/Materials | X0-1V1 sent you to a vault 1768 | -8/Materials | X0-1V1 foreshadows a heat wave 1802 | -8/Materials | X0-1V1 put everyone to sleep 1829 | -8/Materials | Discovered new exit (range 4) 1848 | -8/Materials | X0-1V1 revealed exit location to -7/Factory 1850 | -8/Materials | X0-1V1 activates XOMVISION 1943 | -8/Materials | Entered Storage 2052 | -8/Storage | Build established: Mutant 2061 | -8/Storage | X0-1V1 announced a LAN party 2312 | -8/Storage | Destroyed 7 combat bots 2467 | -8/Storage | Repaired Hvy. Missile Launcher 2672 | -8/Storage | X0-1V1 upgraded hostiles (x2) 2687 | -8/Storage | Core integrity fell below 50% 2717 | -8/Storage | Lost 3 parts (1p2u) 2755 | -8/Storage | Assisted by bots powering up and referring to "LRC-V3" 2777 | -8/Storage | Inventory capacity permanently improved by X0-1V1 (+1; -100 max core) 2882 | -8/Storage | Discovered new exit (range 3) 2887 | -8/Storage | Entered Recycling 2887 | -8/Recycling | Accompanied by 6 allies 2888 | -8/Recycling | Joined Warlord attack on 0b10 via Recycling 2922 | -8/Recycling | Core integrity restored by X0-1V1 (+48) 2990 | -8/Recycling | Core integrity restored by X0-1V1 (+87) 3023 | -8/Recycling | Discovered new exit (range 15) 3045 | -8/Recycling | Build established: Commander-Mutant 3109 | -8/Recycling | Entered Factory 3109 | -6/Factory | Accompanied by 6 allies 3109 | -6/Factory | Evolved 4 slots: Power x1, Propulsion x2, Utility x1 3315 | -6/Factory | Discovered new exit (range 8) 3345 | -6/Factory | Identified exit to Factory 3345 | -6/Factory | X0-1V1 revealed exit location to -5/Factory 3345 | -6/Factory | Entered another Factory area 3345 | -5/Factory | Accompanied by 6 allies 3345 | -5/Factory | Evolved 2 slots: Utility x1, Weapon x1 3391 | -5/Factory | Utility slot count permanently improved by X0-1V1 (+1) 3462 | -5/Factory | Garrison activated, responded to threat 3642 | -5/Factory | Build established: Commander-Gunner 3666 | -5/Factory | Lost 4 allies 3838 | -5/Factory | Discovered new exit (range 14) 3884 | -5/Factory | Entered another Factory area 3884 | -4/Factory | Accompanied by 3 allies 3884 | -4/Factory | Evolved 2 slots: Propulsion x1, Utility x1 4239 | -4/Factory | Lost 4 parts (1n3u) 4303 | -4/Factory | X0-1V1 caused items to flee you 4331 | -4/Factory | System corruption reached 10% 4596 | -4/Factory | Items stopped fleeing you 4803 | -4/Factory | Lost 4 parts (2p2w) 4871 | -4/Factory | Spotted B-86 Titan 4883 | -4/Factory | Sucked down chute 4883 | -4/Factory | Entered Waste 4883 | -4/Waste | The area was eerily silent 4966 | -4/Waste | Build established: Scavenger-Gunner 5158 | -4/Waste | Discovered new exit (range 13) 5172 | -4/Waste | Entered Factory 5280 | -4/Factory | Discovered new exit (range 10) 5322 | -4/Factory | Entered Research 5322 | -3/Research | Evolved 2 slots: Propulsion x1, Weapon x1 5354 | -3/Research | X0-1V1 added 0b10 threat records associated with you (considerable) 5572 | -3/Research | Search patrols dispatched 5658 | -3/Research | Identified exit to Quarantine 5798 | -3/Research | Lost 3 parts (3n) 5951 | -3/Research | Lost 7 parts (1p3n1u2w) 6031 | -3/Research | X0-1V1 announced a LAN party 6072 | -3/Research | First assault squad dispatched 6119 | -3/Research | System corruption reached 10% 6143 | -3/Research | Lost 3 parts (2n1w) 6159 | -3/Research | Discovered new exit (range 13) 6183 | -3/Research | X0-1V1 enhanced Transport squad support 6251 | -3/Research | Identified exit to Research 6253 | -3/Research | Entered another Research area 6253 | -2/Research | Evolved 2 slots: Propulsion x1, Utility x1 6270 | -2/Research | Lost 5 parts (2p2n1w) 6581 | -2/Research | Build established: Skirmisher 6602 | -2/Research | Garrison activated, responded to threat 6661 | -2/Research | Lost 5 parts (1n3u1w) 6699 | -2/Research | X0-1V1 sent you into danger 6727 | -2/Research | X0-1V1 sent allied S-43 Plague (x2) 6753 | -2/Research | First assault squad dispatched 6768 | -2/Research | Weapon slot count temporarily expanded by X0-1V1 (+2) 6821 | -2/Research | Released all parts (8) 6828 | -2/Research | Core integrity restored by X0-1V1 (+228) 6832 | -2/Research | X0-1V1 sent you to a vault 6849 | -2/Research | Lost 21 parts (1p7n7u6w) 7000 | -2/Research | Core integrity fell below 50% 7021 | -2/Research | Spotted B-90 Cyclops 7024 | -2/Research | Core integrity fell below 20% 7026 | -2/Research | X0-1V1 rescued you from certain death 7082 | -2/Research | Discovered new exit (range 5) 7089 | -2/Research | Entered Testing 7129 | -2/Testing | Build established: Mutant 7155 | -2/Testing | Weapon slot count reverted to normal (-2) 7210 | -2/Testing | Found Prototype Energy Gun 7210 | -2/Testing | Identified Tachyon Dispersion Ray 7255 | -2/Testing | X0-1V1 vaporized surrounding terrain (radius 24) 7261 | -2/Testing | Found Prototype Leg 7261 | -2/Testing | Identified Myomer Exoskeleton 7278 | -2/Testing | X0-1V1 announced a LAN party 7295 | -2/Testing | Found Fusion Bomb Launcher 7299 | -2/Testing | X0-1V1 turns hostiles against one another 7343 | -2/Testing | System corruption reached 10% 7365 | -2/Testing | Discovered new exit (range 9) 7367 | -2/Testing | Entered Access 7367 | -1/Access | Evolved 2 slots: Utility x2 7391 | -1/Access | Lost 5 parts (1p2n2u) 7471 | -1/Access | X0-1V1 added 0b10 threat records associated with you (major) 7500 | -1/Access | X0-1V1 mutated your Weapon slot to Utility slot 7568 | -1/Access | Imp. Q-thruster reconfigured into Greater Item Mimic 7720 | -1/Access | Energy Cycler disabled 7735 | -1/Access | Found Prototype Hackware 7735 | -1/Access | Identified Exp. System Shield 7783 | -1/Access | Found Prototype Device 7783 | -1/Access | Identified Exp. Shock Absorption System 7785 | -1/Access | Core integrity fell below 50% 7789 | -1/Access | X0-1V1 whisked you away to safety 7808 | -1/Access | Lost 6 parts (1p3n2u) 7858 | -1/Access | X0-1V1 activates XOMVISION 7867 | -1/Access | Search patrols dispatched 7891 | -1/Access | Core integrity restored by X0-1V1 (+216) 7951 | -1/Access | Lost 3 parts (1n1u1w) 7977 | -1/Access | System corruption reached 10% 7978 | -1/Access | Core integrity fell below 20% 7984 | -1/Access | X0-1V1 rescued you from certain death 8032 | -1/Access | X0-1V1 rescued you from certain death 8054 | -1/Access | Lost 9 parts (1p5n3u) 8117 | -1/Access | Search patrols dispatched 8141 | -1/Access | Destroyed by S-43 Plague with Heavy Machine Gun Last Messages --------------- 08105_ Acquired 8 matter. 08106_ W-44 Eye sends out distress signal. 08107_ Acquired 39 matter. 08109_ The unstable cave ceiling collapses. 08114_ R-10 Processor collects Xenon Bombardment Thruster. 08115_ %NBY